bitfinex-derivatives/quotes_SOLF0:USTF0_20241021
["timestamp","ask_amount","ask_price","bid_price","bid_amount"]
[1729487138257,6.14,171.54,171.41,9.04823535]
[1729487138961,6.14,171.56,171.41,9.04823535]
[1729487139162,6.14,171.56,171.49,2.9162]
[1729487139465,6.14,171.56,171.41,2.90823535]
[1729487139656,6.14,171.56,171.42,6.04]
[1729487139955,1.2099,171.55,171.42,2.96600775]
[1729487140156,2.4737,171.55,171.39,6.04]
[1729487140358,2.4737,171.55,171.39,2.89250653]
[1729487140553,2.4737,171.55,171.39,6.04]
[1729487140554,6.04,171.54,171.39,6.04]
[1729487140757,6.04,171.54,171.39,2.940924]
[1729487140952,1.2549,171.65,171.38,6.04]
[1729487141157,8.5647,171.64,171.38,8.95554858]
[1729487141359,8.5647,171.64,171.39,1.07215625]
[1729487141562,2.9148,171.58,171.45,2.9168]
[1729487141764,6.04,171.57,171.43,6.04]
[1729487141966,6.04,171.57,171.38,2.91554858]
[1729487141967,6.04,171.57,171.33,1.3091]
[1729487142163,2.9158,171.53,171.4,2.9177]
[1729487142363,6.04,171.52,171.41,2.94337738]
[1729487142667,7.3009,171.52,171.39,6.04]
[1729487142871,7.3009,171.52,171.46,2.9168]
[1729487143065,7.3009,171.52,171.41,2.86725555]
[1729487143262,7.3009,171.52,171.39,6.04]
[1729487143470,7.3009,171.52,171.42,2.9173]
[1729487143663,7.3009,171.52,171.41,2.87454691]
[1729487143968,7.3009,171.52,171.44,2.917]
[1729487144361,7.3009,171.52,171.41,2.97779261]
[1729487144566,6.04,171.51,171.42,2.9174]
[1729487144763,6.04,171.51,171.41,2.94716889]
[1729487144962,6.04,171.5,171.39,6.04]
[1729487145159,6.04,171.5,171.44,2.917]
[1729487145367,6.04,171.5,171.41,2.98420423]
[1729487145572,1.2609,171.52,171.38,6.04]
[1729487145760,6.04,171.51,171.38,6.04]
[1729487146061,4.1767,171.52,171.38,8.93580714]
[1729487146266,6.04,171.51,171.38,8.93580714]
[1729487146970,63.0,171.57,171.38,8.93580714]
[1729487147175,6.04,171.56,171.38,8.93580714]
[1729487147777,2.9154,171.55,171.38,8.93580714]
[1729487147972,6.04,171.56,171.38,8.93580714]
[1729487148171,6.04,171.56,171.39,6.04]
[1729487148467,2.9155,171.54,171.46,2.9168]
[1729487148868,6.04,171.56,171.39,6.04]
[1729487149066,2.9156,171.53,171.45,2.917]
[1729487149475,65.9151,171.57,171.49,2.9162]
[1729487149771,6.04,171.54,171.49,2.9162]
[1729487151470,6.04,171.54,171.49,2.9163]
[1729487151874,63.0,171.57,171.39,8.99206019]
[1729487152166,1.2993,171.62,171.39,26.55206019]
[1729487152373,1.2993,171.62,171.4,2.14392659]
[1729487152672,1.342,171.63,171.43,17.56]
[1729487152876,1.342,171.63,171.44,88.94906786]
[1729487153271,1.342,171.63,171.45,1.07186786]
[1729487153965,1.342,171.63,171.6,2.9143]
[1729487154376,1.342,171.63,171.61,2.9142]
[1729487154775,1.342,171.63,171.56,2.86583989]
[1729487154974,1.342,171.63,171.57,2.9148]
[1729487155276,1.342,171.63,171.55,2.93175295]
[1729487155480,1.342,171.63,171.52,6.04]
[1729487155873,1.342,171.63,171.53,2.88715136]
[1729487156378,1.342,171.63,171.56,2.915]
[1729487156778,1.342,171.63,171.52,6.04]
[1729487156974,1.3401,171.62,171.49,2.9162]
[1729487157175,6.04,171.61,171.5,6.04]
[1729487157371,6.04,171.61,171.51,2.86324724]
[1729487157570,6.04,171.61,171.56,2.915]
[1729487157777,6.04,171.61,171.54,2.93348239]
[1729487157979,6.04,171.61,171.5,6.04]
[1729487158380,1.232,171.72,171.5,8.94053174]
[1729487158579,7.3804,171.71,171.5,8.94053174]
[1729487158879,1.3404,171.71,171.51,17.56]
[1729487159080,1.2673,171.79,171.51,17.56]
[1729487159382,7.3073,171.79,171.56,17.56]
[1729487159677,1.2673,171.79,171.57,81.794]
[1729487159883,2.9115,171.78,171.69,2.9129]
[1729487160273,1.2673,171.79,171.65,8.9285762]
[1729487160984,1.2673,171.79,171.72,2.9122]
[1729487161185,1.2673,171.79,171.65,8.9285762]
[1729487161479,2.9115,171.78,171.67,2.9131]
[1729487161680,1.2673,171.79,171.64,2.93674381]
[1729487161873,1.2673,171.79,171.63,6.04]
[1729487162177,1.2673,171.79,171.58,6.04]
[1729487162677,2.9126,171.72,171.63,2.9139]
[1729487162981,6.04,171.71,171.63,2.9139]
[1729487163380,1.3039,171.7,171.63,2.9139]
[1729487163584,1.3039,171.7,171.58,6.04]
[1729487163585,4.2167,171.7,171.62,2.914]
[1729487163883,1.3394,171.69,171.54,6.04]
[1729487164085,2.6591,171.69,171.51,1.2597]
[1729487164284,2.6591,171.69,171.52,6.04]
[1729487164285,2.9133,171.67,171.52,6.04]
[1729487164586,6.04,171.68,171.52,6.04]
[1729487165283,6.04,171.68,171.51,1.2597]
[1729487165580,6.04,171.68,171.56,2.9151]
[1729487165784,6.04,171.68,171.52,6.04]
[1729487165979,6.04,171.68,171.51,1.2597]
[1729487166287,6.04,171.68,171.5,2.90053174]
[1729487166488,2.9145,171.6,171.5,2.9161]
[1729487166677,7.291,171.59,171.42,1.2936]
[1729487166879,6.04,171.58,171.43,6.04]
[1729487167080,6.04,171.58,171.47,2.9166]
[1729487167284,6.04,171.58,171.43,6.04]
[1729487167486,6.04,171.58,171.44,6.04]
[1729487167783,7.3435,171.58,171.44,6.04]
[1729487168188,7.3435,171.58,171.42,1.2936]
[1729487168486,7.3435,171.58,171.4,6.04]
[1729487168685,7.3435,171.58,171.32,62.96]
[1729487168686,7.3435,171.58,171.35,1.2693]
[1729487168882,1.3035,171.58,171.36,6.04]
[1729487169191,1.3035,171.58,171.37,17.56]
[1729487169482,1.3035,171.58,171.37,3.91772068]
[1729487169683,1.3035,171.58,171.38,6.1]
[1729487170885,1.3035,171.58,171.49,2.9161]
[1729487171383,1.3035,171.58,171.5,2.9161]
[1729487172292,1.3035,171.58,171.52,2.9157]
[1729487172683,1.3035,171.58,171.51,2.9158]
[1729487173080,7.4035,171.58,171.45,8.98878987]
[1729487173286,7.4035,171.58,171.52,2.9156]
[1729487174391,7.4035,171.58,171.51,2.916]
[1729487174985,10.3184,171.58,171.49,2.9162]
[1729487175186,7.4035,171.58,171.46,2.71973401]
[1729487175385,7.4035,171.58,171.46,1.2613]
[1729487175589,10.3184,171.58,171.48,2.9164]
[1729487175790,7.4035,171.58,171.46,1.2613]
[1729487176089,7.4035,171.58,171.51,2.9159]
[1729487176286,62.96,171.68,171.46,2.71973401]
[1729487176482,9.9714,171.67,171.47,1.45843401]
[1729487176985,9.9714,171.67,171.46,1.2613]
[1729487177289,6.1,171.66,171.47,1.4583625]
[1729487177489,6.1,171.66,171.48,1.4583625]
[1729487177685,9.0136,171.65,171.57,2.9149]
[1729487178082,9.0136,171.65,171.5,7.5583625]
[1729487178288,6.1,171.64,171.56,2.915]
[1729487180084,2.9136,171.65,171.56,2.915]
[1729487180287,6.1,171.64,171.56,2.915]
[1729487181383,6.1,171.64,171.51,1.4583625]
[1729487181988,6.1,171.64,171.55,2.9151]
[1729487182294,9.0138,171.64,171.55,2.9151]
[1729487182690,6.1,171.64,171.5,6.1]
[1729487183490,6.1,171.64,171.49,6.1]
[1729487183791,9.0138,171.64,171.55,2.9151]
[1729487183994,9.0138,171.64,171.49,6.1]
[1729487184594,2.9143,171.61,171.49,6.1]
[1729487184790,6.1,171.64,171.49,6.1]
[1729487184995,6.1,171.64,171.47,1.45831488]
[1729487185195,2.9146,171.6,171.47,1.45831488]
[1729487185390,6.1,171.63,171.55,2.9152]
[1729487185591,6.1,171.63,171.47,1.45835115]
[1729487185790,6.1,171.63,171.48,1.45835115]
[1729487185791,2.9142,171.62,171.48,1.45835115]
[1729487185991,2.9142,171.62,171.47,1.45835115]
[1729487186190,6.1,171.63,171.53,2.9155]
[1729487186393,2.9143,171.61,171.53,2.9155]
[1729487186590,6.1,171.63,171.46,8.81951383]
[1729487186591,6.1,171.63,171.47,1.45826633]
[1729487186788,2.9139,171.64,171.55,2.9152]
[1729487186987,2.9139,171.64,171.46,8.81951383]
[1729487186988,6.1,171.62,171.46,8.81951383]
[1729487187195,6.1,171.62,171.47,1.45826864]
[1729487187397,6.1,171.61,171.51,2.9158]
[1729487187597,6.1,171.61,171.49,1.45826864]
[1729487187798,6.1,171.61,171.47,1.45821383]
[1729487188194,6.1,171.61,171.48,1.4582133]
[1729487188403,6.1,171.61,171.54,2.9153]
[1729487189097,6.1,171.61,171.55,2.9153]
[1729487190099,6.1,171.61,171.54,2.9154]
[1729487190703,6.1,171.61,171.5,1.45822581]
[1729487190899,6.1,171.61,171.48,1.45822581]
[1729487191100,6.1,171.61,171.49,1.45822581]
[1729487191303,6.1,171.61,171.5,1.45822581]
[1729487191503,6.1,171.61,171.54,2.9153]
[1729487191800,6.1,171.61,171.49,1.45822968]
[1729487191999,6.1,171.61,171.5,1.45822968]
[1729487192199,6.1,171.61,171.54,2.9153]
[1729487192600,6.1,171.61,171.49,1.45822787]
[1729487192796,6.1,171.61,171.55,2.9153]
[1729487194107,6.1,171.61,171.49,1.45832298]
[1729487194308,6.1,171.61,171.47,6.1]
[1729487194505,6.1,171.61,171.48,1.45844519]
[1729487194705,2.9147,171.59,171.52,2.9158]
[1729487194899,3.7983,171.58,171.52,2.9158]
[1729487195908,3.7983,171.58,171.22,2.89299591]
[1729487196111,3.7983,171.58,171.46,1.45855152]
[1729487196311,3.7983,171.58,171.47,4.30297056]
[1729487196511,3.7983,171.58,171.48,2.9163]
[1729487196512,6.7131,171.58,171.48,2.9163]
[1729487196708,3.7983,171.58,171.46,1.45859306]
[1729487196912,3.7983,171.58,171.47,1.45857716]
[1729487197114,1.7132,171.58,171.5,2.916]
[1729487197819,4.015,171.61,171.45,1.45857557]
[1729487198011,4.015,171.61,171.45,2.95825176]
[1729487198211,4.015,171.61,171.44,1.45866881]
[1729487198411,5.78,171.6,171.49,2.9163]
[1729487199211,2.9151,171.56,171.5,2.9161]
[1729487199414,5.78,171.55,171.5,2.9161]
[1729487199717,5.78,171.54,171.45,1.45868601]
[1729487200017,5.78,171.54,171.49,2.9162]
[1729487200317,0.78,171.54,171.49,2.9162]
[1729487200708,0.78,171.54,171.43,9.02821134]
[1729487200709,5.78,171.53,171.43,6.1]
[1729487200916,5.78,171.53,171.44,4.41934963]
[1729487201111,5.78,171.53,171.45,1.45871096]
[1729487201312,0.78,171.53,171.44,4.41932229]
[1729487201521,0.78,171.53,171.45,1.45868345]
[1729487201707,5.78,171.53,171.44,4.41932229]
[1729487201906,5.78,171.53,171.45,1.45868873]
[1729487202112,5.78,171.53,171.41,7.23868352]
[1729487202315,3.311,171.53,171.42,2.91751772]
[1729487202507,3.311,171.53,171.43,1.4588342]
[1729487202706,3.311,171.53,171.47,2.9166]
[1729487202909,5.78,171.52,171.47,2.9166]
[1729487203606,0.78,171.52,171.47,2.9166]
[1729487204015,81.6677726,171.65,171.4,9.90337209]
[1729487204016,20.46530568,171.65,171.43,1.45884744]
[1729487204209,17.5,171.63,171.41,1.4588744]
[1729487204409,2.9156,171.53,171.42,1.45887214]
[1729487204607,5.78,171.52,171.43,1.45887214]
[1729487204916,0.78,171.52,171.41,1.4588744]
[1729487205116,0.78,171.52,171.42,1.45887059]
[1729487205320,5.78,171.51,171.46,2.9167]
[1729487205612,5.78,171.5,171.46,2.9167]
[1729487206014,0.78,171.5,171.44,2.9171]
[1729487206219,0.78,171.5,171.4,2.85067209]
[1729487206419,2.9163,171.49,171.4,2.85067209]
[1729487206714,5.78,171.48,171.43,2.9173]
[1729487206913,5.78,171.47,171.43,2.9173]
[1729487207418,5.78,171.47,171.42,2.9175]
[1729487207820,0.78,171.47,171.39,1.3083]
[1729487208419,5.78,171.46,171.42,2.9175]
[1729487208611,5.78,171.46,171.37,1.45928829]
[1729487208814,3.697,171.46,171.39,2.918]
[1729487209017,3.697,171.46,171.34,1.3235]
[1729487209217,3.697,171.46,171.35,1.45946951]
[1729487209416,5.78,171.45,171.4,2.9177]
[1729487209817,0.78,171.45,171.4,2.9177]
[1729487210417,5.78,171.44,171.4,2.9177]
[1729487211114,0.78,171.44,171.39,2.9178]
[1729487211513,0.78,171.44,171.34,5.69851495]
[1729487211718,3.6972,171.44,171.38,2.9181]
[1729487212017,5.78,171.43,171.38,2.9181]
[1729487212414,0.78,171.43,171.38,2.9181]
[1729487212914,0.78,171.43,171.36,2.9184]
[1729487213113,5.78,171.42,171.34,4.30881227]
[1729487213819,0.78,171.42,171.34,4.30881227]
[1729487214215,5.78,171.42,171.34,4.30881227]
[1729487214817,5.78,171.42,171.37,2.9183]
[1729487215018,0.78,171.42,171.37,2.9183]
[1729487215518,5.78,171.42,171.37,2.9183]
[1729487216019,5.78,171.42,171.34,4.30881227]
[1729487216219,0.78,171.42,171.34,4.30881227]
[1729487216625,17.5,171.5,171.34,4.30881227]
[1729487216819,2.9174,171.43,171.31,1.45954231]
[1729487217021,5.78,171.42,171.31,1.2971]
[1729487217319,0.78,171.42,171.31,2.75664231]
[1729487217511,0.78,171.42,171.31,2.75677143]
[1729487217711,2.9177,171.41,171.31,1.2971]
[1729487218226,2.918,171.39,171.32,2.9191]
[1729487218517,5.78,171.38,171.32,2.9191]
[1729487218823,5.78,171.37,171.32,2.9191]
[1729487219027,5.78,171.36,171.32,2.9191]
[1729487219218,0.78,171.36,171.32,2.9191]
[1729487219719,5.78,171.36,171.31,1.2971]
[1729487220223,0.78,171.36,171.31,1.2971]
[1729487220422,0.78,171.36,171.32,2.9192]
[1729487220826,5.78,171.36,171.32,2.9192]
[1729487221023,5.78,171.36,171.31,1.2971]
[1729487221424,0.78,171.36,171.31,1.2971]
[1729487221923,5.78,171.36,171.31,4.2163]
[1729487222121,5.78,171.36,171.31,2.9192]
[1729487222320,5.78,171.36,171.26,1.2275]
[1729487222520,0.78,171.36,171.26,1.2275]
[1729487223225,5.78,171.35,171.26,1.2275]
[1729487223721,0.78,171.35,171.26,1.2275]
[1729487223930,0.78,171.35,171.29,2.9197]
[1729487224223,0.78,171.35,171.26,1.2275]
[1729487224425,5.48,171.34,171.29,2.9196]
[1729487224629,9.06,171.5,171.26,1.2275]
[1729487224827,0.62,171.48,171.26,1.2275]
[1729487225023,5.2607,171.49,171.33,2.9189]
[1729487225224,17.5,171.48,171.27,5.48]
[1729487225626,15.4175,171.48,171.27,5.48]
[1729487225824,13.335,171.5,171.27,5.48]
[1729487226020,1.2443,171.47,171.27,5.48]
[1729487226218,2.9173,171.44,171.38,2.9182]
[1729487226420,153.33284399,171.51,171.34,2.92685926]
[1729487226724,0.48,171.5,171.35,2.5813]
[1729487227023,0.48,171.5,171.39,2.9179]
[1729487227220,17.98,171.5,171.35,2.5813]
[1729487227417,17.98,171.5,171.37,2.9182]
[1729487227418,2.9174,171.43,171.37,2.9182]
[1729487227623,5.48,171.42,171.37,2.9182]
[1729487228025,0.48,171.42,171.37,2.9182]
[1729487228425,2.9178,171.41,171.27,5.48]
[1729487228718,5.48,171.4,171.28,2.5813]
[1729487229325,0.48,171.4,171.28,2.5813]
[1729487229524,0.48,171.4,171.34,2.9187]
[1729487229720,0.48,171.4,171.28,2.5813]
[1729487229927,5.48,171.39,171.28,2.5813]
[1729487230323,2.9182,171.38,171.28,2.5813]
[1729487230525,3.3982,171.39,171.28,2.5813]
[1729487231118,0.3388,171.5,171.28,2.5813]
[1729487231119,16.237,171.5,171.28,2.5813]
[1729487231429,19.7764,171.49,171.28,2.5813]
[1729487231623,15.3399,171.49,171.28,2.5813]
[1729487232227,2.9175,171.42,171.36,2.9185]
[1729487232525,5.48,171.41,171.36,2.9185]
[1729487232727,0.48,171.41,171.28,2.5813]
[1729487233129,3.3977,171.41,171.35,2.9187]
[1729487233325,14.6352,171.5,171.35,2.9187]
[1729487233326,5.48,171.4,171.35,2.9187]
[1729487233721,0.48,171.4,171.35,2.9187]
[1729487234128,0.48,171.4,171.28,2.5813]
[1729487234321,5.48,171.4,171.36,2.9184]
[1729487234927,0.48,171.4,171.36,2.9184]
[1729487235233,0.48,171.4,171.28,2.5813]
[1729487235428,5.48,171.39,171.28,8.0613]
[1729487235728,5.48,171.38,171.33,2.9189]
[1729487235933,5.48,171.38,171.28,8.0613]
[1729487236232,2.9185,171.37,171.3,2.9194]
[1729487236433,5.48,171.38,171.28,8.0613]
[1729487236434,3.3985,171.38,171.28,2.5813]
[1729487236824,5.48,171.37,171.28,1.2361]
[1729487237029,2.9188,171.35,171.28,4.1559]
[1729487237229,2.9188,171.35,171.28,1.2361]
[1729487237430,2.9188,171.35,171.28,4.1559]
[1729487237624,5.48,171.36,171.25,1.2477]
[1729487237828,5.48,171.36,171.24,1.2928]
[1729487238235,2.9193,171.32,171.24,4.2132]
[1729487238428,5.48,171.31,171.2,1.2888]
[1729487238636,2.9199,171.29,171.22,2.9209]
[1729487238835,5.48,171.28,171.22,2.9209]
[1729487239028,5.48,171.28,171.16,4.30043461]
[1729487239234,5.48,171.28,171.16,5.58923461]
[1729487239427,2.9202,171.26,171.18,2.9214]
[1729487239737,2.9202,171.26,171.16,2.5995]
[1729487240133,5.48,171.28,171.18,2.9216]
[1729487240328,5.48,171.28,171.16,2.5995]
[1729487241035,2.9207,171.24,171.16,5.5213]
[1729487241336,5.48,171.23,171.09,5.48]
[1729487241536,5.48,171.22,171.11,1.333]
[1729487241736,14.297,171.37,171.14,2.9223]
[1729487241737,5.48,171.21,171.14,2.9223]
[1729487242136,5.48,171.21,171.16,2.9218]
[1729487242533,5.48,171.21,171.11,1.333]
[1729487243036,5.48,171.21,171.14,2.9223]
[1729487243234,5.48,171.21,171.11,1.333]
[1729487243433,2.9213,171.2,171.11,1.333]
[1729487243629,5.48,171.21,171.11,1.333]
[1729487244039,2.9214,171.19,171.11,4.2558]
[1729487244236,5.48,171.21,171.11,1.333]
[1729487244433,2.9213,171.2,171.13,2.9224]
[1729487244632,2.9213,171.2,171.11,1.333]
[1729487245029,2.9216,171.18,171.07,1.2956]
[1729487245734,2.9218,171.17,171.1,2.9229]
[1729487245935,5.48,171.16,171.07,1.2956]
[1729487246235,5.48,171.16,171.04,2.571]
[1729487246436,2.9221,171.15,171.04,2.571]
[1729487246637,5.48,171.16,171.04,2.571]
[1729487246829,2.9225,171.13,171.04,5.4948]
[1729487247030,77.357,171.27,171.04,2.571]
[1729487247234,19.777,171.26,171.04,2.571]
[1729487247434,2.9218,171.17,171.04,2.571]
[1729487247639,5.48,171.16,171.04,2.571]
[1729487247933,5.48,171.16,171.06,2.9235]
[1729487247934,2.9223,171.14,171.06,2.9235]
[1729487248240,5.48,171.16,171.04,2.571]
[1729487248442,2.9225,171.13,171.04,5.495]
[1729487248641,5.48,171.16,171.04,2.571]
[1729487248941,5.48,171.16,170.99,1.2358]
[1729487249131,5.48,171.16,171.0,1.2151]
[1729487249332,68.6,171.15,171.01,2.90533254]
[1729487249537,5.48,171.14,171.08,2.9232]
[1729487249741,5.48,171.13,171.08,2.9232]
[1729487249938,63.12,171.16,171.03,2.91030392]
[1729487250139,5.48,171.15,171.0,1.2151]
[1729487250339,5.48,171.15,171.04,2.9239]
[1729487250539,5.48,171.15,171.01,2.85269441]
[1729487251148,5.48,171.14,171.0,1.2151]
[1729487251745,5.48,171.14,171.08,2.9231]
[1729487251944,5.48,171.14,171.04,2.91995474]
[1729487252144,5.48,171.14,171.0,1.2151]
[1729487252352,5.48,171.14,171.09,2.9231]
[1729487253051,2.9219,171.17,171.09,2.9231]
[1729487253251,5.48,171.16,171.12,2.9225]
[1729487253449,5.48,171.15,171.12,2.9225]
[1729487253653,5.48,171.15,171.02,5.48]
[1729487253851,5.48,171.15,171.11,2.9226]
[1729487254044,5.48,171.15,171.02,8.35931047]
[1729487254453,5.48,171.15,171.11,2.9226]
[1729487256052,63.12,171.23,171.02,8.35931047]
[1729487256251,5.46,171.22,171.02,8.35931047]
[1729487256454,8.3811,171.22,171.02,8.35931047]
[1729487256654,8.3811,171.22,171.13,2.9224]
[1729487256854,5.46,171.22,171.02,8.35931047]
[1729487257253,5.46,171.21,171.15,2.9221]
[1729487257458,5.46,171.21,171.12,2.92173199]
[1729487257663,5.46,171.21,171.13,3.8546]
[1729487257855,5.46,171.21,171.18,2.9214]
[1729487259556,5.46,171.21,171.13,3.8546]
[1729487259857,5.46,171.21,171.14,2.9222]
[1729487261163,5.46,171.21,171.15,2.9221]
[1729487261666,5.46,171.21,171.14,2.9223]
[1729487261854,5.46,171.21,171.13,3.8546]
[1729487262460,5.46,171.21,171.16,2.9219]
[1729487263159,5.46,171.21,171.13,3.8546]
[1729487263964,8.3812,171.21,171.13,2.5199]
[1729487265157,8.3812,171.21,171.13,5.4422]
[1729487265667,8.3812,171.21,171.13,2.5199]
[1729487265970,5.46,171.21,171.13,2.5199]
[1729487266468,5.46,171.21,171.16,2.9218]
[1729487267970,8.3811,171.21,171.16,2.9218]
[1729487268170,2.9211,171.21,171.16,2.9218]
[1729487268374,5.46,171.2,171.14,2.9222]
[1729487268574,8.3813,171.2,171.14,2.9222]
[1729487269473,80.62,171.26,171.09,1.3218]
[1729487269674,22.96,171.25,171.09,1.3218]
[1729487269970,2.9219,171.17,171.11,2.9226]
[1729487270175,5.46,171.16,171.11,2.9226]
[1729487270571,8.3819,171.16,171.11,2.9226]
[1729487271969,8.3819,171.16,171.07,1.2426]
[1729487272181,2.9224,171.14,171.09,2.923]
[1729487272374,5.46,171.16,171.04,2.5431]
[1729487272678,2.9224,171.13,171.08,2.9231]
[1729487273672,2.9222,171.15,171.1,2.9229]
[1729487278279,5.46,171.14,171.1,2.9229]
[1729487279372,63.12,171.26,171.04,2.5431]
[1729487279670,5.46,171.25,171.05,5.46]
[1729487280275,22.96,171.25,171.05,5.46]
[1729487280779,22.96,171.25,171.04,2.5431]
[1729487281375,2.9223,171.15,171.04,2.5431]
[1729487281575,5.46,171.14,171.04,2.5431]
[1729487281975,2.9225,171.13,171.04,2.5431]
[1729487282288,5.46,171.14,171.04,2.5431]
[1729487282474,8.3824,171.14,171.07,2.9235]
[1729487283082,8.3824,171.14,171.08,2.9232]
[1729487283477,2.923,171.1,171.04,2.9238]
[1729487283791,5.4,171.09,170.95,2.5031]
[1729487284083,5.4,171.09,171.03,2.9241]
[1729487284588,2.9233,171.08,171.01,2.9243]
[1729487284979,5.4,171.09,170.95,9.1407]
[1729487286387,5.4,171.09,170.95,3.7407]
[1729487287186,2.9242,171.03,170.95,6.6661]
[1729487287484,5.4,171.02,170.95,6.6661]
[1729487287684,5.4,171.02,170.95,5.4104]
[1729487287878,5.4,171.02,170.95,2.485]
[1729487288082,2.9245,171.01,170.95,2.485]
[1729487288280,5.4,171.02,170.86,1.2655]
[1729487288483,5.4,171.02,170.87,2.5501]
[1729487288680,5.4,171.02,170.92,2.926]
[1729487289887,2.9247,171.0,170.92,2.926]
[1729487290080,5.4,171.02,170.91,2.9262]
[1729487290592,2.9253,170.97,170.87,2.5501]
[1729487290886,5.42,170.96,170.89,2.9264]
[1729487291085,5.42,170.95,170.89,2.9264]
[1729487291281,63.18,171.02,170.87,2.5501]
[1729487291484,5.42,171.01,170.92,2.926]
[1729487291690,8.3448,171.0,170.92,2.926]
[1729487292083,5.42,171.0,170.91,2.9262]
[1729487292289,2.9252,170.97,170.87,2.5501]
[1729487293189,2.9254,170.96,170.89,2.9264]
[1729487293393,5.42,170.95,170.89,2.9264]
[1729487296286,5.42,170.95,170.87,2.5501]
[1729487296490,2.9264,170.9,170.71,66.12728082]
[1729487296695,5.42,170.89,170.78,1.2889]
[1729487296989,5.42,170.88,170.78,1.2889]
[1729487297191,83.58146147,171.02,170.78,1.2889]
[1729487297392,5.42,171.01,170.78,1.2889]
[1729487297888,5.42,171.01,170.92,2.9259]
[1729487298089,5.42,171.01,170.86,2.85988235]
[1729487298297,5.42,171.01,170.87,3.834]
[1729487298989,2.9248,170.99,170.87,3.834]
[1729487299595,5.42,171.01,170.87,3.834]
[1729487300195,2.925,170.98,170.87,3.834]
[1729487300396,5.42,171.01,170.87,3.834]
[1729487301091,5.42,171.0,170.87,3.834]
[1729487301489,5.42,171.0,170.96,2.9253]
[1729487301897,5.42,171.0,170.87,3.834]
[1729487302893,5.42,171.0,170.94,2.9256]
[1729487303084,63.18,171.02,170.94,2.9256]
[1729487303288,5.42,171.01,170.94,2.9255]
[1729487303790,8.3445,171.01,170.94,2.9255]
[1729487305797,8.3445,171.01,170.95,2.9255]
[1729487305991,5.42,171.0,170.95,2.9255]
[1729487306894,68.6,171.02,170.99,2.9247]
[1729487307900,68.6,171.02,170.98,2.925]
[1729487309703,68.6,171.02,170.92,2.89379104]
[1729487309903,71.5244,171.02,170.95,2.9254]
[1729487310099,68.6,171.02,170.95,2.9254]
[1729487311006,2.9245,171.01,170.95,2.9254]
[1729487312102,68.6,171.02,170.97,2.9251]
[1729487312501,68.6,171.02,170.87,3.834]
[1729487312702,68.6,171.02,170.96,2.9253]
[1729487312904,2.9242,171.03,170.96,2.9253]
[1729487313100,2.9251,170.98,170.87,2.6009]
[1729487313306,5.32,170.97,170.88,2.9266]
[1729487313505,5.32,170.96,170.88,2.9266]
[1729487313808,5.32,170.95,170.87,2.6009]
[1729487314215,5.32,170.98,170.87,2.6009]
[1729487314405,5.32,170.98,170.93,2.9258]